bitfinex/quotes_BTCUSD_20250412
["timestamp","ask_amount","ask_price","bid_price","bid_amount"]
[1744425872038,0.01202,83190.0,83185.0,0.240425]
[1744425872246,0.01220102,83186.0,83185.0,0.240425]
[1744425872450,0.01202,83188.0,83185.0,0.252446]
[1744425872806,0.01220151,83187.0,83185.0,0.252446]
[1744425873240,0.01202,83189.0,83185.0,0.252446]
[1744425873475,0.01220102,83186.0,83185.0,0.252446]
[1744425873653,0.01202,83188.0,83185.0,0.252446]
[1744425873850,0.01220102,83186.0,83185.0,0.252446]
[1744425874048,0.01202,83188.0,83185.0,0.252446]
[1744425874656,0.01220151,83187.0,83185.0,0.252446]
[1744425876504,0.01220151,83187.0,83185.0,0.302446]
[1744425878248,0.01220151,83187.0,83185.0,0.252446]
[1744425879326,0.01220151,83187.0,83181.0,0.150581]
[1744425879327,0.012021,83184.0,83181.0,0.13856]
[1744425879534,0.01210201,83183.0,83181.0,0.13856]
[1744425883335,0.01210201,83183.0,83181.0,0.378999]
[1744425883567,0.012021,83186.0,83181.0,0.39102]
[1744425883781,0.01210298,83185.0,83181.0,0.39102]
[1744425884606,0.01210298,83185.0,83183.0,0.012021]
[1744425884803,0.02412398,83185.0,83181.0,0.39102]
[1744425885272,0.02412398,83185.0,83181.0,0.150581]
[1744425886702,0.012021,83184.0,83181.0,0.13856]
[1744425887080,0.01210201,83183.0,83181.0,0.13856]
[1744425888893,0.240436,83182.0,83181.0,0.13856]
[1744425889338,0.2525132,83182.0,83181.0,0.13856]
[1744425889551,0.4720132,83182.0,83181.0,0.13856]
[1744425889915,0.25248,83175.0,83171.0,0.012023]
[1744425890129,0.25248,83175.0,83171.0,0.01216395]
[1744425890130,0.01201603,83174.0,83171.0,0.01216395]
[1744425891068,0.240462,83173.0,83171.0,0.00014095]
[1744425891269,0.289862,83173.0,83171.0,0.00014095]
[1744425891474,0.01200792,83172.0,83171.0,0.00014095]
[1744425897256,0.18200792,83172.0,83171.0,0.00014095]
[1744425897432,0.01200792,83172.0,83171.0,0.00014095]
[1744425898336,0.252484,83174.0,83171.0,0.00014095]
[1744425898535,0.01196169,83172.0,83171.0,0.00014095]
[1744425898741,0.252484,83174.0,83171.0,0.00014095]
[1744425898955,0.422484,83174.0,83171.0,0.00014095]
[1744425899162,0.25242717,83173.0,83171.0,0.00014095]
[1744425899369,0.41242717,83173.0,83171.0,0.00014095]
[1744425899588,0.25242717,83173.0,83171.0,0.00014095]
[1744425900040,0.44242717,83173.0,83171.0,0.00014095]
[1744425900258,0.40242717,83173.0,83171.0,0.00014095]
[1744425900492,0.0463,83172.0,83171.0,0.00014095]
[1744425900631,0.1963,83172.0,83171.0,0.00014095]
[1744425900861,0.20820382,83172.0,83171.0,0.00014095]
[1744425901440,0.05820382,83172.0,83171.0,0.00014095]
[1744425901647,0.25236882,83172.0,83171.0,0.00014095]
[1744425902026,0.26236882,83172.0,83171.0,0.00014095]
[1744425906828,0.25236882,83172.0,83171.0,0.00014095]
[1744425908951,0.41236882,83172.0,83171.0,0.00014095]
[1744425911566,0.25236882,83172.0,83171.0,0.00014095]
[1744425918697,0.41236882,83172.0,83171.0,0.00014095]
[1744425918926,0.25236882,83172.0,83171.0,0.00014095]
[1744425922054,0.26236882,83172.0,83171.0,0.00014095]
[1744425922279,0.35676882,83172.0,83171.0,0.00014095]
[1744425922530,0.7136827,83172.0,83171.0,0.00014095]
[1744425923419,0.74740322,83172.0,83171.0,0.00014095]
[1744425923625,0.7136827,83172.0,83171.0,0.00014095]
[1744425924322,0.80612276,83172.0,83171.0,0.00014095]
[1744425925895,0.72259085,83172.0,83171.0,0.00014095]
[1744425946726,0.63700116,83172.0,83171.0,0.00014095]
[1744425948570,0.49844116,83172.0,83171.0,0.00014095]
[1744425979255,0.7148827,83172.0,83171.0,0.00014095]
[1744425979677,0.74861069,83172.0,83171.0,0.00014095]
[1744425980052,0.77202232,83172.0,83171.0,0.00014095]
[1744425980521,0.74861069,83172.0,83171.0,0.00014095]
[1744425998779,0.88705069,83172.0,83171.0,0.00014095]
[1744426002849,0.8533227,83172.0,83171.0,0.00014095]
[1744426003015,0.88706701,83172.0,83171.0,0.00014095]
[1744426003183,0.8533227,83172.0,83171.0,0.00014095]
[1744426003647,0.88706862,83172.0,83171.0,0.00014095]
[1744426007502,0.947931,83172.0,83171.0,0.00014095]
[1744426007717,0.88706862,83172.0,83171.0,0.00014095]
[1744426015210,0.84096862,83172.0,83171.0,0.00014095]
[1744426020314,1.23036862,83172.0,83171.0,0.00014095]
[1744426022707,1.2868528,83172.0,83171.0,0.00014095]
[1744426026631,1.23036862,83172.0,83171.0,0.00014095]
[1744426027234,1.3510971,83172.0,83171.0,0.00014095]
[1744426029437,1.23036862,83172.0,83171.0,0.00014095]
[1744426042162,1.13146862,83172.0,83171.0,0.00014095]
[1744426051151,1.14700947,83172.0,83171.0,9.5e-07]
[1744426052236,1.19230947,83172.0,83171.0,9.5e-07]
[1744426052441,0.30131985,83167.0,83166.0,0.00080455]
[1744426052683,0.61590731,83167.0,83166.0,0.00080455]
[1744426052912,0.62735125,83167.0,83166.0,0.00080455]
[1744426054160,0.62735125,83167.0,83158.0,0.0008436]
[1744426054161,0.59504385,83159.0,83158.0,0.0008436]
[1744426054363,1.28478398,83159.0,83158.0,0.0008436]
[1744426054559,1.29619213,83159.0,83158.0,0.0008436]
[1744426058047,1.17546365,83159.0,83158.0,0.0008436]
[1744426064325,1.18173127,83159.0,83158.0,0.0008436]
[1744426064984,1.32013127,83159.0,83158.0,0.0008436]
[1744426076054,1.44673127,83159.0,83158.0,0.0008436]
[1744426076251,1.32013127,83159.0,83158.0,0.0008436]
[1744426076499,1.44085975,83159.0,83158.0,0.0008436]
[1744426081857,1.53235975,83159.0,83158.0,0.0008436]
[1744426082057,1.53235975,83159.0,83158.0,6e-07]
[1744426082058,1.40636365,83159.0,83158.0,6e-07]
[1744426082203,0.012025,83154.0,83148.0,0.0004218]
[1744426082407,0.35454085,83152.0,83148.0,0.0004218]
[1744426082757,0.71038329,83152.0,83148.0,0.0004218]
[1744426084539,0.81206663,83152.0,83148.0,0.0004218]
[1744426085371,0.71038329,83152.0,83148.0,0.0004218]
[1744426085577,0.71949331,83152.0,83148.0,0.0004218]
[1744426087489,0.71949331,83152.0,83151.0,6e-07]
[1744426087490,1.00598294,83152.0,83151.0,6e-07]
[1744426087898,0.9997169,83152.0,83151.0,6e-07]
[1744426091009,0.580552,83142.0,83141.0,1e-07]
[1744426091228,1.07417713,83142.0,83141.0,1e-07]
[1744426091471,1.29915479,83142.0,83141.0,4.708e-05]
[1744426092679,1.16079479,83142.0,83141.0,4.708e-05]
[1744426093064,1.29915479,83142.0,83141.0,4.708e-05]
[1744426094328,1.31108289,83142.0,83141.0,4.708e-05]
[1744426094954,1.42865736,83142.0,83141.0,4.708e-05]
[1744426095462,0.01454085,83139.0,83138.0,4.8e-07]
[1744426095714,0.30538239,83139.0,83138.0,0.00047075]
[1744426095908,0.35027601,83139.0,83138.0,0.00047075]
[1744426096272,0.36935915,83139.0,83138.0,0.00047075]
[1744426096495,0.70935915,83139.0,83138.0,0.00047075]
[1744426096736,0.25510385,83138.0,83137.0,5.5e-07]
[1744426096888,0.57969131,83138.0,83137.0,5.5e-07]
[1744426097256,0.71156797,83138.0,83137.0,5.5e-07]
[1744426098151,0.59083949,83138.0,83137.0,5.5e-07]
[1744426099891,0.82526308,83138.0,83137.0,5.5e-07]
[1744426100471,0.82626308,83138.0,83137.0,5.5e-07]
[1744426101727,1.16626308,83138.0,83137.0,5.5e-07]
[1744426105755,0.59511885,83133.0,83132.0,0.0008434]
[1744426105998,0.89702574,83133.0,83132.0,0.0008434]
[1744426106593,1.01775422,83133.0,83132.0,0.0008434]
[1744426107196,0.89702574,83133.0,83132.0,0.0008434]
[1744426107403,0.91982485,83131.0,83130.0,1e-06]
[1744426107642,0.91982485,83131.0,83124.0,0.0008438]
[1744426107643,0.45454085,83101.0,83100.0,5.9e-07]
[1744426107900,1.32807543,83101.0,83100.0,5.9e-07]
[1744426108167,1.51736836,83101.0,83100.0,5.9e-07]
[1744426108368,1.25612613,83101.0,83100.0,5.9e-07]
[1744426108572,1.47685461,83101.0,83100.0,5.9e-07]
[1744426109247,1.47685461,83101.0,83098.0,9.9e-07]
[1744426109248,0.59521685,83099.0,83098.0,9.9e-07]
[1744426109496,0.88605839,83099.0,83098.0,9.9e-07]
[1744426109743,0.89524163,83099.0,83098.0,9.9e-07]
[1744426110418,0.89524163,83099.0,83067.0,0.0485219]
[1744426110419,0.580714,83086.0,83085.0,7.8e-07]
[1744426110647,0.8607441,83086.0,83085.0,7.8e-07]
[1744426110883,0.8607441,83086.0,83067.0,0.0485219]
[1744426110884,0.240763,83069.0,83067.0,4.5e-07]
[1744426111114,0.46084154,83068.0,83067.0,4.5e-07]
[1744426111367,0.62001605,83068.0,83067.0,4.5e-07]
[1744426111836,0.6292312,83068.0,83067.0,4.5e-07]
[1744426112311,0.6297002,83068.0,83067.0,4.5e-07]
[1744426114507,0.86412324,83068.0,83067.0,4.5e-07]
[1744426115693,0.240783,83062.0,83061.0,0.002]
[1744426115917,0.54162454,83062.0,83061.0,0.002]
[1744426116120,0.55080051,83062.0,83061.0,0.002]
[1744426120429,0.78522355,83062.0,83061.0,0.002]
[1744426121034,0.66438201,83062.0,83061.0,0.002]
[1744426121991,0.42995897,83062.0,83061.0,0.002]
[1744426123540,0.55080051,83062.0,83061.0,0.002]
[1744426125939,0.90534136,83062.0,83061.0,0.002]
[1744426127854,0.59533585,83058.0,83035.0,0.0455]
[1744426128060,0.88617739,83058.0,83035.0,0.0455]
[1744426128259,0.89500692,83058.0,83035.0,0.0455]
[1744426129031,1.0656354,83058.0,83057.0,8e-07]
[1744426129405,1.2040754,83058.0,83057.0,8e-07]
[1744426130083,0.240807,83054.0,83053.0,6e-07]
[1744426130269,0.89718939,83054.0,83053.0,6e-07]
[1744426130474,0.9056153,83054.0,83053.0,6e-07]
[1744426131451,0.240865,83034.0,83033.0,0.000422]
[1744426131620,0.55006396,83034.0,83033.0,0.000422]
[1744426132222,0.55931288,83034.0,83033.0,0.000422]
[1744426132843,0.55978159,83034.0,83033.0,0.000422]
[1744426133554,0.89978159,83034.0,83033.0,0.000422]
[1744426134004,0.91198429,83034.0,83033.0,0.000422]
[1744426135433,0.89978159,83034.0,83033.0,0.000422]
[1744426137592,0.91196626,83034.0,83033.0,0.000422]
[1744426138364,0.91196626,83034.0,83021.0,8e-05]
[1744426138365,0.240882,83028.0,83021.0,8e-05]
[1744426138571,0.87334518,83028.0,83021.0,8e-05]
[1744426139003,0.99407366,83028.0,83021.0,8e-05]
[1744426139202,0.87334518,83028.0,83021.0,8e-05]
[1744426139852,0.240914,83017.0,83016.0,0.0123972]
[1744426140069,0.67728207,83017.0,83016.0,0.0123972]
[1744426141244,1.07712292,83017.0,83016.0,0.0123972]
[1744426141470,1.26724596,83017.0,83016.0,0.0123972]
[1744426141670,1.26624596,83017.0,83016.0,0.0123972]
[1744426143350,1.12776596,83017.0,83016.0,0.0123972]
[1744426143597,1.26624596,83017.0,83016.0,0.0123972]
[1744426148216,1.26624596,83017.0,83016.0,0.0117872]
[1744426148646,1.36084596,83017.0,83016.0,2e-07]
[1744426148848,1.39432478,83017.0,83016.0,2e-07]
[1744426149685,0.01084584,83004.0,83001.0,0.002]
[1744426149940,0.12084154,83003.0,83001.0,0.002]
[1744426150153,0.14016,83002.0,83001.0,0.002]
[1744426150355,0.44554239,83002.0,83001.0,0.002]
[1744426150560,0.45250973,83002.0,83001.0,0.002]
[1744426150768,0.45250973,83002.0,82980.0,0.0075282]
[1744426150769,0.012055,82953.0,82947.0,0.012055]
[1744426151108,0.24109,82957.0,82946.0,0.012056]
[1744426151109,0.00665031,82952.0,82949.0,0.253164]
[1744426151315,0.241155,82934.0,82932.0,0.0004225]
[1744426151733,0.2577787,82934.0,82932.0,0.0004225]
[1744426151942,0.0066237,82934.0,82932.0,0.0004225]
[1744426152154,0.241117,82950.0,82932.0,0.0004225]
[1744426152155,0.241091,82957.0,82933.0,0.0619972]
[1744426152306,0.241107,82951.0,82943.0,0.012056]
[1744426152505,0.012055,82948.0,82941.0,0.012056]
[1744426152709,0.253144,82957.0,82947.0,0.012055]
[1744426152910,0.241095,82955.0,82947.0,0.012055]
[1744426153114,0.012053,82966.0,82945.0,0.21437391]
[1744426153331,0.00046784,82959.0,82958.0,0.253139]
[1744426153739,0.00046784,82959.0,82958.0,0.012054]
[1744426153963,0.00046784,82959.0,82955.0,0.012054]
[1744426154165,0.00046784,82959.0,82956.0,0.012054]
[1744426154332,0.00046784,82959.0,82956.0,0.253144]
[1744426154953,0.00046784,82959.0,82954.0,0.25315]
[1744426155165,0.01252184,82959.0,82955.0,0.012054]
[1744426155355,0.00046784,82959.0,82956.0,0.253145]
[1744426156309,0.00046784,82959.0,82958.0,0.241085]
[1744426157477,0.00046784,82959.0,82958.0,0.36192654]
[1744426159030,0.012051,82980.0,82975.0,0.253087]
[1744426159356,0.01713971,82979.0,82975.0,0.241036]
[1744426159776,0.00508871,82979.0,82975.0,0.241036]
[1744426160917,0.00508871,82979.0,82977.0,0.24103]
[1744426161116,0.00508871,82979.0,82975.0,0.241036]
[1744426161378,0.012051,82979.0,82975.0,0.241036]
[1744426161578,0.0050294,82978.0,82975.0,0.241036]
[1744426161820,0.0050294,82978.0,82977.0,0.24103]
[1744426161994,0.01205,82983.0,82978.0,0.241024]
[1744426162206,0.01205,82981.0,82977.0,0.24103]
[1744426162407,0.01,82981.0,82977.0,0.253081]
[1744426162641,0.01205,82987.0,82977.0,0.253081]
[1744426162642,0.00503086,82980.0,82979.0,0.241024]
[1744426162843,0.24604994,82993.0,82979.0,0.29003398]
[1744426163062,0.00504033,82992.0,82989.0,0.253043]
[1744426163263,0.01708933,82992.0,82989.0,0.240994]
[1744426163769,0.01708933,82992.0,82987.0,0.01205]
[1744426163962,0.012049,82991.0,82986.0,0.253051]
[1744426164187,0.012049,82991.0,82987.0,0.00465608]
[1744426164369,0.00517623,82990.0,82987.0,0.00465608]
[1744426164567,0.00517623,82990.0,82987.0,0.24565408]
[1744426164925,0.01722523,82990.0,82987.0,0.00465608]
[1744426165177,0.01517623,82990.0,82987.0,0.00465608]
[1744426165595,0.02722523,82990.0,82986.0,0.24104798]
[1744426165982,0.02722523,82990.0,82986.0,4.698e-05]
[1744426165983,0.240999,82988.0,82986.0,4.698e-05]
[1744426166186,0.49504248,82987.0,82986.0,4.698e-05]
[1744426166391,0.67023009,82987.0,82986.0,4.698e-05]
[1744426168359,0.43622915,82987.0,82986.0,4.698e-05]
[1744426171976,0.17518761,82987.0,82986.0,4.698e-05]
[1744426172659,0.17518761,82987.0,82974.0,0.012051]
[1744426172660,0.012051,82977.0,82975.0,0.00465608]
[1744426172872,0.172051,82977.0,82975.0,0.00465608]
[1744426173042,0.241033,82976.0,82975.0,0.00465608]
[1744426173205,0.41612894,82976.0,82975.0,0.00465608]
[1744426173563,0.41612894,82976.0,82974.0,7.897e-05]
[1744426174278,0.12084154,82975.0,82974.0,7.897e-05]
[1744426174552,0.30593454,82975.0,82974.0,7.897e-05]
[1744426184985,0.30593454,82975.0,82974.0,7.897e-05]
[1744426194368,0.39963454,82975.0,82974.0,7.897e-05]
[1744426194587,0.39963454,82975.0,82944.0,0.00753229]
[1744426194588,0.012055,82947.0,82944.0,0.00753229]
[1744426194772,0.241123,82945.0,82944.0,0.00753229]
[1744426194975,0.241123,82945.0,82943.0,0.00089044]
[1744426194976,0.52196454,82945.0,82943.0,0.00089044]
[1744426195178,0.12084154,82944.0,82943.0,0.00089044]
[1744426195444,0.30084154,82944.0,82943.0,0.00089044]
[1744426195622,0.31467445,82944.0,82943.0,0.00089044]
[1744426199228,0.18496744,82944.0,82943.0,0.00089044]
[1744426199816,0.19393726,82944.0,82943.0,0.00089044]
[1744426200011,0.00496744,82944.0,82943.0,0.00089044]
[1744426201167,0.18496744,82944.0,82943.0,0.00089044]
[1744426201504,0.16496744,82944.0,82943.0,0.00089044]
[1744426201850,0.00496744,82944.0,82943.0,0.00089044]
[1744426202253,0.11496744,82944.0,82943.0,0.00089044]
[1744426212728,0.23580898,82944.0,82943.0,0.00089044]
[1744426212931,0.32670898,82944.0,82943.0,0.00089044]
[1744426213339,0.34124983,82944.0,82943.0,0.00089044]
[1744426219041,0.34124983,82944.0,82932.0,0.0004225]
[1744426219042,0.11454085,82933.0,82932.0,8.4e-07]
[1744426219269,0.96422239,82933.0,82932.0,8.4e-07]
[1744426219494,0.37212952,82933.0,82932.0,8.4e-07]
[1744426219700,0.27552952,82933.0,82932.0,8.4e-07]
[1744426220430,0.15,82933.0,82932.0,8.4e-07]
[1744426221580,0.27084154,82933.0,82932.0,8.4e-07]
[1744426223287,0.15,82933.0,82932.0,8.4e-07]
[1744426224586,0.38400094,82933.0,82932.0,8.4e-07]
[1744426226885,0.15,82933.0,82932.0,8.4e-07]
[1744426231364,0.16205816,82933.0,82932.0,8.4e-07]
[1744426239278,0.26834988,82933.0,82932.0,8.4e-07]
[1744426239487,0.3739997,82933.0,82932.0,8.4e-07]
[1744426242293,0.4109996,82933.0,82932.0,8.4e-07]
[1744426243281,0.38854055,82933.0,82932.0,8.4e-07]
[1744426244241,0.53014055,82933.0,82932.0,8.4e-07]
[1744426245008,0.4244997,82933.0,82932.0,8.4e-07]
[1744426245648,0.30365816,82933.0,82932.0,8.4e-07]
[1744426246551,0.32611855,82933.0,82932.0,8.4e-07]
[1744426247930,0.43669425,82933.0,82932.0,8.4e-07]
[1744426249188,0.012059,82923.0,82920.0,0.0004226]
[1744426249391,0.162059,82923.0,82920.0,0.0004226]
[1744426249592,0.03337643,82922.0,82920.0,0.0004226]
[1744426249852,0.19337643,82922.0,82920.0,0.0004226]
[1744426250023,0.02246039,82921.0,82920.0,0.0004226]
[1744426250399,0.19337682,82921.0,82920.0,0.0004226]
[1744426250596,0.03337682,82921.0,82920.0,0.0004226]
[1744426250800,0.21337682,82921.0,82920.0,0.0004226]
[1744426251303,0.19337682,82921.0,82920.0,0.0004226]
[1744426251707,0.03337682,82921.0,82920.0,0.0004226]
[1744426252240,0.19337682,82921.0,82920.0,0.0004226]
[1744426260764,0.03337682,82921.0,82920.0,0.2416186]
[1744426261375,0.01091643,82921.0,82920.0,0.2416186]
[1744426261624,0.012059,82923.0,82920.0,0.2886186]
[1744426261828,0.012059,82923.0,82920.0,0.0474226]
[1744426261829,0.241192,82922.0,82920.0,0.0474226]
[1744426262035,0.41022729,82922.0,82920.0,0.0474226]
[1744426263826,0.41022729,82922.0,82920.0,0.0004226]
[1744426264060,6.0,82921.0,82920.0,0.0004226]
[1744426264364,6.18245142,82921.0,82920.0,0.0004226]
[1744426264511,6.19148711,82921.0,82920.0,0.0004226]
[1744426266530,6.31232865,82921.0,82920.0,0.0004226]
[1744426267156,6.32156806,82921.0,82920.0,0.0004226]
[1744426267378,6.555569,82921.0,82920.0,0.0004226]
[1744426267563,6.601269,82921.0,82920.0,0.0004226]
[1744426268176,6.61580985,82921.0,82920.0,0.0004226]
[1744426268372,6.73653833,82921.0,82920.0,0.0004226]
[1744426268784,6.77018942,82921.0,82920.0,0.0004226]
[1744426269194,6.73653833,82921.0,82920.0,0.0004226]
[1744426269434,6.61580985,82921.0,82920.0,0.0004226]
[1744426269814,6.601269,82921.0,82920.0,0.0004226]
[1744426270620,6.61580985,82921.0,82920.0,0.0004226]
[1744426271273,6.75828985,82921.0,82920.0,0.0004226]
[1744426273112,0.01085753,82914.0,82911.0,0.002]
[1744426273263,0.12084154,82913.0,82911.0,0.002]
[1744426273450,0.32225315,82913.0,82911.0,0.002]
[1744426273651,0.02245142,82912.0,82911.0,0.002]
[1744426273845,0.31329296,82912.0,82911.0,0.002]
[1744426274071,0.32225354,82912.0,82911.0,0.002]
[1744426274278,0.32272117,82912.0,82911.0,0.002]
[1744426278990,0.55629951,82912.0,82911.0,0.002]
[1744426284680,0.91974419,82910.0,82909.0,0.0005017]
[1744426284970,0.012068,82859.0,82854.0,0.012069]
[1744426285507,0.012068,82862.0,82857.0,0.012068]
[1744426285676,0.012068,82862.0,82854.0,0.14510437]
[1744426285677,0.012066,82876.0,82873.0,0.012066]
[1744426285906,0.23157834,82889.0,82869.0,0.012067]
[1744426286020,0.012065,82882.0,82876.0,0.012066]
[1744426286227,0.012066,82877.0,82870.0,0.241339]
[1744426286427,0.00046735,82876.0,82872.0,0.241336]
[1744426286628,0.17046735,82876.0,82875.0,0.241327]
[1744426288113,0.00046735,82876.0,82875.0,0.241327]
[1744426288303,0.00046735,82876.0,82875.0,0.24373978]
[1744426288667,0.00046735,82876.0,82875.0,0.241327]
[1744426290207,0.17046735,82876.0,82875.0,0.241327]
[1744426290429,0.00046735,82876.0,82875.0,0.241327]
[1744426291407,0.18046735,82876.0,82875.0,0.241327]
[1744426291869,0.00046735,82876.0,82875.0,0.36216854]
[1744426292395,0.17046735,82876.0,82875.0,0.36216854]
[1744426292598,0.17684053,82876.0,82875.0,0.36216854]
[1744426293194,0.17684053,82876.0,82875.0,0.35216854]
[1744426293893,0.41816453,82876.0,82870.0,0.012067]
[1744426294070,0.012066,82875.0,82871.0,0.012066]
[1744426294252,0.17843878,82875.0,82871.0,0.012066]
[1744426298110,0.17843878,82875.0,82872.0,0.012066]
[1744426300085,0.012067,82866.0,82860.0,0.012068]
[1744426300288,0.012068,82863.0,82859.0,0.50477454]
[1744426300439,0.022068,82863.0,82859.0,0.14256]
[1744426300643,0.00636764,82862.0,82860.0,0.012068]
[1744426300838,0.00636764,82862.0,82859.0,0.383931]
[1744426301038,0.00636764,82862.0,82859.0,0.395999]
[1744426301424,0.17636764,82862.0,82859.0,0.395999]
[1744426301857,0.42980064,82862.0,82859.0,0.14256]
[1744426302027,0.25980064,82862.0,82859.0,0.14256]
[1744426302514,0.012068,82861.0,82854.0,0.01219383]
[1744426302715,0.012068,82861.0,82851.0,0.0143972]
[1744426302716,0.012069,82854.0,82851.0,0.0143972]
[1744426302966,0.241394,82852.0,82851.0,0.0143972]
[1744426303174,0.251394,82852.0,82851.0,0.0143972]
[1744426303473,0.42851403,82852.0,82851.0,0.0143972]
[1744426305303,0.54935557,82852.0,82851.0,0.0143972]
[1744426305584,0.42851403,82852.0,82851.0,0.0143972]
[1744426305786,0.18712003,82852.0,82851.0,0.0143972]
[1744426305944,0.00636369,82852.0,82851.0,0.0143972]
[1744426306145,0.17075634,82865.0,82863.0,0.241362]
[1744426306369,0.34075634,82865.0,82862.0,0.25343]
[1744426306575,0.00636387,82864.0,82862.0,0.25343]
[1744426306778,0.17636387,82864.0,82862.0,0.25343]
[1744426307596,0.17636387,82864.0,82863.0,0.241362]
[1744426307797,0.17636387,82864.0,82862.0,0.012068]
[1744426309981,0.17636387,82864.0,82863.0,0.241362]
[1744426313317,0.17636387,82864.0,82858.0,0.241376]
[1744426313318,0.012068,82863.0,82858.0,0.012068]
[1744426313561,0.17,82863.0,82860.0,0.012068]
[1744426313969,0.00630873,82862.0,82860.0,0.012068]
[1744426314124,0.18630873,82862.0,82860.0,0.012068]
[1744426314326,0.18630873,82862.0,82860.0,0.253436]
[1744426320739,0.18468269,82862.0,82861.0,0.46084154]
[1744426321175,0.18,82862.0,82861.0,0.46084154]
[1744426322981,0.18,82862.0,82861.0,0.12084154]
[1744426323472,0.00046735,82876.0,82861.0,0.12084154]
[1744426323473,0.00046735,82876.0,82875.0,0.241327]
[1744426323699,0.00046735,82876.0,82875.0,0.36458124]
[1744426323916,0.00046735,82876.0,82875.0,0.70216854]
[1744426324826,0.00046735,82876.0,82875.0,0.71670939]
[1744426329295,0.0008446,82909.0,82908.0,0.241231]
[1744426329495,0.0108446,82909.0,82908.0,0.241231]
[1744426330747,0.0108446,82909.0,82908.0,0.24137148]
[1744426332446,0.0108446,82909.0,82908.0,0.24378347]
[1744426333673,0.0108446,82909.0,82908.0,0.24137148]
[1744426334121,0.0108446,82909.0,82908.0,0.2437834]
[1744426335381,0.0008446,82909.0,82908.0,0.36221302]
[1744426335555,0.0108446,82909.0,82908.0,0.36221302]
[1744426338223,0.0108446,82909.0,82908.0,0.00014048]
[1744426338224,0.00431439,82909.0,82908.0,0.00014048]
[1744426340498,0.17075634,82920.0,82916.0,0.01206]
[1744426340752,0.34075634,82920.0,82917.0,0.01206]
[1744426341038,0.34075634,82920.0,82917.0,0.241202]
[1744426341448,0.34075634,82920.0,82918.0,0.2412]
[1744426343006,0.34075634,82920.0,82918.0,0.241199]
[1744426343303,0.34075634,82920.0,82917.0,0.241202]
[1744426343998,0.34075634,82920.0,82919.0,0.241199]
[1744426344244,0.17,82920.0,82919.0,0.241199]
[1744426347981,0.17,82920.0,82919.0,0.36204054]
[1744426348183,6.0,82921.0,82919.0,0.36204054]
[1744426348387,6.0,82921.0,82920.0,0.12084154]
[1744426350307,6.0,82921.0,82920.0,0.13538239]
[1744426350510,6.0,82921.0,82920.0,0.18579395]
[1744426350760,6.0,82921.0,82920.0,0.18338239]
[1744426352953,6.0,82921.0,82920.0,0.52338239]
[1744426354766,6.0,82921.0,82920.0,0.60432154]
[1744426355505,6.0,82921.0,82920.0,0.61986239]
[1744426355506,5.145214,82921.0,82920.0,0.61986239]
[1744426355759,5.145214,82921.0,82920.0,0.66556239]
[1744426357273,5.145214,82921.0,82920.0,0.71236239]
[1744426373682,5.145214,82921.0,82920.0,0.66556239]
[1744426376169,5.145214,82921.0,82920.0,0.61986239]
[1744426380613,5.145214,82921.0,82920.0,0.61886239]
[1744426383838,5.145214,82921.0,82920.0,0.46084154]
[1744426384053,5.194014,82921.0,82920.0,0.60520154]
[1744426390984,5.194014,82921.0,82920.0,0.61974239]
[1744426390985,5.145214,82921.0,82920.0,0.61974239]
[1744426403594,5.145214,82921.0,82920.0,0.61850239]
[1744426411163,0.012061,82911.0,82901.0,0.01226641]
[1744426411291,0.048,82903.0,82902.0,0.012062]
[1744426411709,0.058,82903.0,82902.0,0.13290354]
[1744426413305,0.048,82903.0,82902.0,0.13290354]
[1744426413510,0.0964,82910.0,82907.0,0.012061]
[1744426413723,0.0964,82910.0,82908.0,0.36207254]
[1744426415297,0.048,82916.0,82915.0,0.24121]
[1744426416484,0.148,82916.0,82915.0,0.24121]
[1744426435254,0.241248,82902.0,82886.0,0.0004214]
[1744426435427,0.61628954,82902.0,82886.0,0.0004214]
[1744426436493,0.241292,82887.0,82886.0,0.0004214]
[1744426436700,0.481792,82887.0,82886.0,0.0004214]
[1744426441341,0.476792,82887.0,82886.0,0.0004214]
[1744426441740,0.15,82887.0,82886.0,0.0004214]
[1744426441986,0.01,82887.0,82886.0,0.0004214]
[1744426444520,0.012064,82890.0,82886.0,0.0004214]
[1744426444723,0.263347,82890.0,82886.0,0.0124854]
[1744426445345,0.01,82890.0,82887.0,0.253356]
[1744426445552,0.17075634,82891.0,82888.0,0.253351]
[1744426445768,0.17075634,82891.0,82890.0,0.241283]
[1744426445892,0.012063,82893.0,82890.0,0.012064]
[1744426446095,0.022063,82893.0,82890.0,0.012064]
[1744426446300,0.01,82893.0,82890.0,0.012064]
[1744426451494,0.022063,82893.0,82890.0,0.012064]
[1744426454115,0.012063,82892.0,82888.0,0.37419254]
[1744426454319,0.022063,82892.0,82888.0,0.37419254]
[1744426454683,0.022063,82892.0,82889.0,0.012064]
[1744426456059,0.022063,82892.0,82889.0,0.253347]
[1744426456060,0.01,82892.0,82889.0,0.253347]
[1744426456268,0.01,82892.0,82891.0,0.24128]
[1744426456677,0.04874017,82902.0,82898.0,0.012063]
[1744426456877,0.00014017,82902.0,82899.0,0.012062]
[1744426457089,0.00014017,82902.0,82899.0,0.253317]
[1744426457573,0.00014017,82902.0,82900.0,0.241252]
[1744426458449,0.18014017,82902.0,82900.0,0.241252]
[1744426458658,0.17014017,82902.0,82900.0,0.241252]
[1744426458859,0.00014017,82902.0,82900.0,0.241252]
[1744426459058,0.18014017,82902.0,82900.0,0.241252]
[1744426459477,0.00014017,82902.0,82900.0,0.241252]
[1744426459778,0.18014017,82902.0,82900.0,0.241252]
[1744426460396,0.18014017,82902.0,82900.0,0.24066624]
[1744426461324,0.00014017,82902.0,82900.0,0.24066624]
[1744426464347,0.16014017,82902.0,82900.0,0.24066624]
[1744426465427,0.00014017,82902.0,82900.0,0.24066624]
[1744426465568,0.00014017,82902.0,82900.0,0.36392015]
[1744426465755,0.00014017,82902.0,82900.0,0.36150778]
[1744426466363,0.18014017,82902.0,82900.0,0.36150778]
[1744426470740,0.00014017,82902.0,82901.0,0.12084154]
[1744426471036,0.00014017,82902.0,82901.0,0.1232538]
[1744426471269,0.15014017,82902.0,82901.0,0.12084154]
[1744426472582,0.15014017,82902.0,82897.0,0.241261]
[1744426472583,0.0459,82901.0,82897.0,0.012063]
[1744426472770,0.2259,82901.0,82897.0,0.253326]
[1744426474089,0.237962,82901.0,82897.0,0.253326]
[1744426475191,0.237962,82901.0,82898.0,0.012063]
[1744426475687,0.2259,82901.0,82898.0,0.253321]
[1744426478367,0.18,82901.0,82899.0,0.241255]
[1744426478812,0.01,82901.0,82899.0,0.253317]
[1744426480406,0.00014017,82902.0,82901.0,0.241251]